bitfinex/quotes_BTCUSD_20250418
["timestamp","ask_amount","ask_price","bid_price","bid_amount"]
[1744961762837,0.00714575,84424.0,84422.0,0.0110806]
[1744961763880,0.00714575,84424.0,84421.0,0.35184539]
[1744961764758,0.01899072,84424.0,84421.0,0.35184539]
[1744961766034,0.2558927,84424.0,84421.0,0.34]
[1744961769377,0.01899072,84424.0,84421.0,0.34]
[1744961769994,0.00714575,84424.0,84421.0,0.35184539]
[1744961770194,0.00714575,84424.0,84421.0,0.3755359]
[1744961771249,0.00714575,84424.0,84423.0,0.34]
[1744961771682,0.00714575,84424.0,84423.0,0.341]
[1744961771876,0.01184469,84426.0,84423.0,0.341]
[1744961772198,0.00714343,84424.0,84423.0,0.341]
[1744961772401,0.01184469,84426.0,84423.0,0.35284511]
[1744961772606,0.00714343,84424.0,84423.0,0.35284511]
[1744961772779,0.01184469,84426.0,84423.0,0.35284511]
[1744961772981,0.00714343,84424.0,84423.0,0.35284511]
[1744961773192,0.01184469,84426.0,84423.0,0.35284511]
[1744961773397,0.00714343,84424.0,84423.0,0.35284511]
[1744961773579,0.01184469,84426.0,84423.0,0.35284511]
[1744961774241,0.00714502,84425.0,84423.0,0.35284511]
[1744961774824,0.00714343,84424.0,84423.0,0.35284511]
[1744961775653,0.01184469,84426.0,84423.0,0.35284511]
[1744961775812,0.00714343,84424.0,84423.0,0.35284511]
[1744961776188,0.01184469,84426.0,84423.0,0.35284511]
[1744961776538,0.23700795,84428.0,84424.0,0.03553491]
[1744961776708,0.00714502,84425.0,84424.0,0.03553491]
[1744961776873,0.0001175,84428.0,84426.0,0.02368938]
[1744961785771,0.00715297,84427.0,84426.0,0.02368938]
[1744961786377,0.00715297,84427.0,84425.0,0.01184483]
[1744961788120,0.00715297,84427.0,84425.0,0.03553423]
[1744961790022,0.00715297,84427.0,84426.0,0.47296]
[1744961791224,0.00715297,84427.0,84426.0,0.34]
[1744961791401,0.00715297,84427.0,84426.0,0.47296]
[1744961793901,0.0001175,84428.0,84427.0,0.3636891]
[1744961794365,0.00726984,84428.0,84427.0,0.3636891]
[1744961795249,0.00726984,84428.0,84427.0,0.0236891]
[1744961795447,0.0001175,84428.0,84427.0,0.0236891]
[1744961796515,0.0001175,84428.0,84427.0,0.03476575]
[1744961796722,0.0001175,84428.0,84427.0,0.37476575]
[1744961799552,0.048,84443.0,84440.0,0.01184272]
[1744961799768,0.16752802,84443.0,84440.0,0.01184272]
[1744961800091,0.00717449,84442.0,84440.0,0.01184272]
[1744961800283,0.00717449,84442.0,84441.0,0.01846684]
[1744961804278,8.011e-05,84443.0,84441.0,0.01846684]
[1744961804279,8.011e-05,84443.0,84442.0,0.02368489]
[1744961804723,8.011e-05,84443.0,84442.0,0.03107508]
[1744961804923,0.00725618,84443.0,84442.0,0.03107508]
[1744961805137,8.011e-05,84443.0,84442.0,0.02368489]
[1744961805295,0.00725618,84443.0,84442.0,0.03476154]
[1744961805497,8.011e-05,84443.0,84442.0,0.01107665]
[1744961805810,0.00725618,84443.0,84442.0,0.01107665]
[1744961806017,8.011e-05,84443.0,84442.0,0.35846666]
[1744961806953,0.00727408,84443.0,84442.0,0.35846666]
[1744961807165,8.011e-05,84443.0,84442.0,0.35107665]
[1744961807338,0.00727408,84443.0,84442.0,0.35107665]
[1744961807543,8.011e-05,84443.0,84442.0,0.35107665]
[1744961807740,0.00727408,84443.0,84442.0,0.35107665]
[1744961807967,8.011e-05,84443.0,84442.0,0.35107665]
[1744961808172,0.00727408,84443.0,84442.0,0.35107665]
[1744961811595,0.00727408,84443.0,84442.0,0.34]
[1744961812912,0.00727408,84443.0,84442.0,0.36368489]
[1744961813117,0.00727408,84443.0,84442.0,0.34]
[1744961813320,0.00727408,84443.0,84442.0,0.36368489]
[1744961813512,0.00727408,84443.0,84440.0,0.03552801]
[1744961813797,0.00727408,84443.0,84442.0,0.02368489]
[1744961814300,0.00727408,84443.0,84442.0,0.03474424]
[1744961814513,0.00727408,84443.0,84442.0,0.01105935]
[1744961816770,0.00727408,84443.0,84441.0,0.34]
[1744961818484,0.00727408,84443.0,84442.0,0.01105997]
[1744961819122,0.00727408,84443.0,84442.0,0.01844972]
[1744961821654,0.00727408,84443.0,84442.0,0.04213461]
[1744961822157,0.00727408,84443.0,84442.0,0.01844972]
[1744961826380,0.24412023,84443.0,84442.0,0.01844972]
[1744961826600,0.00727408,84443.0,84442.0,0.01844972]
[1744961826937,0.00727408,84443.0,84441.0,0.13033955]
[1744961827885,0.01911638,84443.0,84440.0,0.14476272]
[1744961828088,0.0494,84442.0,84440.0,0.14476272]
[1744961828444,0.00718512,84441.0,84440.0,0.14476272]
[1744961828879,0.00718512,84441.0,84440.0,0.48476272]
[1744961829086,0.00718512,84441.0,84440.0,0.50844813]
[1744961836078,0.00718512,84441.0,84440.0,0.48476272]
[1744961837927,8.011e-05,84443.0,84441.0,0.36368517]
[1744961839016,8.011e-05,84443.0,84442.0,0.00738943]
[1744961839221,8.011e-05,84443.0,84442.0,0.01847338]
[1744961852206,8.011e-05,84443.0,84442.0,0.49135338]
[1744961854256,0.04948011,84443.0,84442.0,0.49135338]
[1744961854481,0.04948011,84443.0,84442.0,0.35847338]
[1744961854730,0.05550113,84443.0,84442.0,0.35847338]
[1744961855299,0.05550113,84443.0,84442.0,0.35108395]
[1744961856144,0.05550113,84443.0,84442.0,0.34]
[1744961856792,0.04948011,84443.0,84442.0,0.34]
[1744961857430,0.04948011,84443.0,84442.0,0.3473895]
[1744961858176,0.04948011,84443.0,84442.0,0.35846638]
[1744961860550,0.04948011,84443.0,84442.0,0.35107688]
[1744961861105,0.04948011,84443.0,84442.0,0.34]
[1744961864914,0.05549665,84443.0,84442.0,0.34]
[1744961865982,0.04948011,84443.0,84442.0,0.34]
[1744961875930,0.05501323,84443.0,84442.0,0.34]
[1744961876152,0.04948011,84443.0,84442.0,0.34]
[1744961879070,0.04948011,84443.0,84442.0,0.47284]
[1744961879487,0.05453242,84443.0,84442.0,0.47284]
[1744961880389,0.05453242,84443.0,84442.0,0.48392208]
[1744961880559,0.05453242,84443.0,84442.0,0.49131162]
[1744961887753,0.05453242,84443.0,84442.0,0.47284]
[1744961888765,0.05453242,84443.0,84442.0,0.34]
[1744961892904,0.29237857,84443.0,84442.0,0.34]
[1744961893130,0.40677417,84443.0,84442.0,0.34]
[1744961893330,0.41132016,84443.0,84442.0,0.34]
[1744961893706,0.41331406,84443.0,84442.0,0.34]
[1744961909026,0.41331406,84443.0,84442.0,0.34905438]
[1744961914471,0.41111499,84443.0,84442.0,0.34905438]
[1744961917297,0.36171499,84443.0,84442.0,0.34905438]
[1744961928232,0.00542093,84443.0,84442.0,0.34905438]
[1744961928597,0.00778787,84443.0,84442.0,0.34905438]
[1744961929548,0.00542093,84443.0,84442.0,0.34905438]
[1744961929904,0.00778787,84443.0,84442.0,0.34905438]
[1744961931229,0.00678787,84443.0,84442.0,0.34905438]
[1744961947849,0.00678787,84443.0,84442.0,0.36013604]
[1744961948056,0.00678787,84443.0,84442.0,0.36752638]
[1744961950001,0.00678787,84443.0,84442.0,0.34905438]
[1744961952933,0.00678787,84443.0,84442.0,0.36013669]
[1744961953159,0.00678787,84443.0,84442.0,0.36752703]
[1744961956359,0.00678787,84443.0,84442.0,0.02752703]
[1744961965286,0.00442093,84443.0,84442.0,0.02752703]
[1744961965582,0.00678787,84443.0,84442.0,0.02752703]
[1744961966168,0.00442093,84443.0,84442.0,0.02752703]
[1744961966367,0.00678787,84443.0,84442.0,0.02752703]
[1744961966717,0.00442093,84443.0,84442.0,0.02752703]
[1744961968404,0.00442093,84443.0,84442.0,0.05221192]
[1744961968602,0.00442093,84443.0,84442.0,0.39221192]
[1744961968950,0.00659223,84443.0,84442.0,0.39221192]
[1744961969153,0.0008424,84446.0,84445.0,0.02368405]
[1744961969347,0.00088748,84446.0,84443.0,0.54224449]
[1744961969660,0.00088748,84446.0,84445.0,0.37107439]
[1744961970112,0.00088748,84446.0,84445.0,0.34]
[1744961970976,0.23684615,84443.0,84442.0,0.01005438]
[1744961971195,0.358661,84443.0,84442.0,0.01005438]
[1744961971394,0.35629406,84443.0,84442.0,0.01005438]
[1744961972247,0.40609406,84443.0,84442.0,0.001]
[1744961974214,0.16924791,84443.0,84442.0,0.001]
[1744961974418,0.17161485,84443.0,84442.0,0.001]
[1744961974792,0.16924791,84443.0,84442.0,0.001]
[1744961974998,0.11944791,84443.0,84442.0,0.001]
[1744961975826,0.00188748,84446.0,84445.0,0.02368405]
[1744961976055,0.00188748,84446.0,84443.0,0.37552691]
[1744961976056,0.00188748,84446.0,84443.0,0.3518423]
[1744961976344,0.00188748,84446.0,84443.0,0.34]
[1744961976345,0.01372936,84446.0,84443.0,0.34]
[1744961976524,0.00709439,84446.0,84444.0,0.02368433]
[1744961976819,0.00188748,84446.0,84444.0,0.02368433]
[1744961977033,0.00188748,84446.0,84443.0,0.3518423]
[1744961977034,0.23684504,84444.0,84442.0,0.0489]
[1744961977383,0.23684504,84444.0,84442.0,0.001]
[1744961977384,0.35629295,84444.0,84442.0,0.001]
[1744961977608,0.12701464,84443.0,84442.0,0.001]
[1744961977811,0.17681464,84443.0,84442.0,0.001]
[1744961978427,0.22631464,84443.0,84442.0,0.001]
[1744961980527,0.1744477,84443.0,84442.0,0.001]
[1744961980761,0.12701464,84443.0,84442.0,0.001]
[1744961981604,0.00519979,84443.0,84442.0,0.001]
[1744961981979,0.00188748,84446.0,84444.0,0.02368416]
[1744961982183,0.00188748,84446.0,84443.0,0.0118423]
[1744961982681,0.01372936,84446.0,84443.0,0.0118423]
[1744961983974,0.00188748,84446.0,84443.0,0.0118423]
[1744961986242,0.24868256,84445.0,84442.0,0.001]
[1744961991350,0.24868256,84445.0,84441.0,0.01184258]
[1744961992500,0.01184216,84444.0,84440.0,0.01184272]
[1744961995032,0.24868845,84443.0,84438.0,0.011843]
[1744961995239,0.24868845,84443.0,84438.0,0.035529]
[1744961995637,0.01707286,84442.0,84438.0,0.035529]
[1744961996271,0.01707286,84442.0,84439.0,0.01184286]
[1744961997286,0.01707286,84442.0,84438.0,0.011843]
[1744961998268,0.01707286,84442.0,84438.0,0.03552896]
[1744961998457,0.01184272,84440.0,84437.0,0.34]
[1744961998652,0.0052233,84439.0,84437.0,0.34]
[1744961999271,0.01184244,84442.0,84438.0,0.011843]
[1744961999719,0.00522805,84441.0,84438.0,0.011843]
[1744962005285,0.00522805,84441.0,84438.0,0.03552879]
[1744962006741,0.01184216,84444.0,84439.0,0.01184286]
[1744962007136,0.00523279,84443.0,84439.0,0.01184286]
[1744962008611,0.2486914,84442.0,84438.0,0.011843]
[1744962008809,0.01184272,84440.0,84437.0,0.34]
[1744962009159,0.01184272,84440.0,84437.0,0.36368629]
[1744962009275,0.01184272,84440.0,84437.0,0.37552943]
[1744962009995,0.00520892,84439.0,84437.0,0.37552943]
[1744962010789,0.01184258,84441.0,84438.0,0.011843]
[1744962012690,0.24869729,84440.0,84437.0,0.34]
[1744962012902,0.28515832,84439.0,84437.0,0.34]
[1744962025534,0.00511842,84438.0,84437.0,0.34]
[1744962028990,0.0118423,84443.0,84439.0,0.01184286]
[1744962029355,0.00512791,84442.0,84439.0,0.01184286]
[1744962029631,0.24956735,84446.0,84442.0,0.01184244]
[1744962030075,0.01184202,84445.0,84442.0,0.01184244]
[1744962030495,0.01184202,84445.0,84440.0,0.03552817]
[1744962031766,0.01184216,84444.0,84440.0,0.03552817]
[1744962033230,0.24868582,84444.0,84440.0,0.01184272]
[1744962035345,0.01184244,84442.0,84438.0,0.011843]
[1744962036457,0.0118423,84443.0,84440.0,0.01184272]
[1744962036605,0.01184244,84442.0,84438.0,0.011843]
[1744962037608,0.01184244,84442.0,84439.0,0.01184286]
[1744962040310,0.01184258,84441.0,84437.0,0.34]
[1744962040459,0.01184272,84440.0,84437.0,0.34]
[1744962040652,0.01825635,84440.0,84437.0,0.34]
[1744962041562,0.23686018,84438.0,84437.0,0.34]
[1744962041768,0.00641054,84438.0,84437.0,0.34]
[1744962041982,0.01184272,84440.0,84437.0,0.34]
[1744962042205,0.00641209,84439.0,84437.0,0.34]
[1744962046532,0.00641209,84439.0,84436.0,0.16828967]
[1744962047574,0.0118423,84443.0,84439.0,0.01184286]
[1744962047781,0.01184258,84441.0,84437.0,0.03552916]
[1744962047956,0.00641363,84440.0,84437.0,0.03552916]
[1744962048568,0.00641363,84440.0,84437.0,0.37552916]
[1744962054883,0.00641363,84440.0,84438.0,0.34]
[1744962059741,0.00641363,84440.0,84437.0,0.37552918]
[1744962060406,0.01825635,84440.0,84437.0,0.34]
[1744962060589,0.01184272,84440.0,84437.0,0.34]
[1744962060766,0.00640754,84439.0,84437.0,0.34]
[1744962065348,0.00640754,84439.0,84437.0,0.36368602]
[1744962065506,0.01184258,84441.0,84437.0,0.37552916]
[1744962065706,0.00640798,84440.0,84437.0,0.37552916]
[1744962067577,0.00640798,84440.0,84437.0,0.35184314]
[1744962067715,0.00640798,84440.0,84437.0,0.37552917]
[1744962067933,0.01184258,84441.0,84437.0,0.35184314]
[1744962068125,0.00640798,84440.0,84437.0,0.35184314]
[1744962069977,0.00640798,84440.0,84437.0,0.37552922]
[1744962071923,0.00640798,84440.0,84439.0,0.02368573]
[1744962072277,0.01184244,84442.0,84439.0,0.03552859]
[1744962072480,0.00640798,84440.0,84439.0,0.01184286]
[1744962072981,0.2486917,84442.0,84439.0,0.01184286]
[1744962073181,0.00640952,84441.0,84439.0,0.03552853]
[1744962073591,0.0118423,84443.0,84439.0,0.03552853]
[1744962073917,0.00641107,84442.0,84439.0,0.03552853]
[1744962074119,0.00641107,84442.0,84441.0,0.02368517]
[1744962074348,0.00641107,84442.0,84439.0,0.03552853]
[1744962074551,0.01184216,84444.0,84439.0,0.03552853]
[1744962074711,0.00640952,84441.0,84439.0,0.03552853]
[1744962074919,0.0118423,84443.0,84439.0,0.03552853]
[1744962075087,0.00640798,84440.0,84439.0,0.03552853]
[1744962075288,0.01184244,84442.0,84439.0,0.03552853]
[1744962075484,0.00640798,84440.0,84439.0,0.03552853]
[1744962075693,0.01184244,84442.0,84439.0,0.03552853]
[1744962075930,0.00640798,84440.0,84439.0,0.03552853]
[1744962076090,0.01184244,84442.0,84439.0,0.03552853]
[1744962076293,0.00640798,84440.0,84439.0,0.03552853]
[1744962076533,0.01184244,84442.0,84439.0,0.03552853]
[1744962076849,0.00640835,84441.0,84439.0,0.03552853]
[1744962077078,0.00640835,84441.0,84439.0,0.01184286]
[1744962078507,0.00640835,84441.0,84440.0,0.02605372]
[1744962078625,0.00088748,84446.0,84445.0,0.02368405]
[1744962078824,0.00730357,84446.0,84445.0,0.02368405]
[1744962079858,0.00088748,84446.0,84445.0,0.02605221]
[1744962080055,0.00088748,84446.0,84445.0,0.02705221]
[1744962088129,0.00088748,84446.0,84445.0,0.02468405]
[1744962090191,0.00088748,84446.0,84445.0,0.02705221]
[1744962094516,0.00088748,84446.0,84445.0,0.02468405]
[1744962097039,0.00188748,84446.0,84439.0,0.01184286]
[1744962098020,0.00188748,84446.0,84445.0,0.02368405]
[1744962098233,0.00780088,84446.0,84445.0,0.02368405]
[1744962099301,0.00188748,84446.0,84445.0,0.02368405]
[1744962105221,0.0469,84456.0,84450.0,0.02368265]
[1744962105429,0.00626218,84451.0,84450.0,0.02368265]
[1744962105564,0.0008424,84451.0,84450.0,0.02368265]
[1744962107194,0.0008424,84451.0,84450.0,0.49632265]
[1744962109459,0.0008424,84451.0,84450.0,0.5054069]
[1744962148625,0.23766612,84451.0,84450.0,0.48172425]
[1744962148860,0.0493424,84451.0,84450.0,0.34908425]
[1744962149044,0.17756504,84451.0,84450.0,0.34908425]
[1744962163261,0.22716504,84451.0,84450.0,0.34908425]
[1744962171380,0.22616504,84451.0,84450.0,0.34908425]
[1744962171565,0.22716504,84451.0,84450.0,0.34908425]
[1744962173107,0.17756504,84451.0,84450.0,0.34908425]
[1744962173838,0.1751981,84451.0,84450.0,0.34908425]
[1744962174044,0.17756504,84451.0,84450.0,0.34908425]
[1744962176611,0.1751981,84451.0,84450.0,0.34908425]
[1744962181629,0.1741981,84451.0,84450.0,0.34908425]
[1744962190289,0.17656504,84451.0,84450.0,0.34908425]
[1744962194409,0.1741981,84451.0,84450.0,0.34908425]
[1744962196908,0.1256981,84451.0,84450.0,0.34908425]
[1744962200703,0.24307391,84451.0,84450.0,0.34908425]
[1744962223424,0.00625019,84451.0,84450.0,0.34908425]
[1744962238386,0.24307391,84451.0,84450.0,0.34908425]
[1744962239683,0.24307391,84451.0,84450.0,0.00908425]
[1744962239887,0.25491509,84451.0,84448.0,0.0118416]
[1744962243238,0.01809137,84451.0,84448.0,0.0118416]
[1744962243956,0.01809137,84451.0,84448.0,0.02051974]
[1744962251735,0.23682652,84450.0,84448.0,0.00867814]
[1744962252064,0.01724194,84449.0,84446.0,0.01184188]
[1744962253457,0.01724194,84449.0,84446.0,0.02073815]
[1744962256932,0.23683213,84448.0,84446.0,0.00889627]
[1744962257153,0.01723912,84447.0,84444.0,0.14428216]
[1744962258154,0.01723912,84447.0,84444.0,0.15303744]
[1744962260293,0.01723912,84447.0,84444.0,0.14119528]
[1744962262119,0.01723912,84447.0,84444.0,0.13244]
[1744962264248,0.01723912,84447.0,84445.0,0.34]
[1744962265542,0.01723912,84447.0,84445.0,0.16122013]
[1744962266348,0.00539738,84447.0,84446.0,0.0496]
[1744962266551,0.01184146,84449.0,84446.0,0.0496]
[1744962266796,0.00539977,84448.0,84446.0,0.0496]
[1744962268811,0.01268358,84451.0,84447.0,0.01184174]
[1744962269136,0.00540287,84450.0,84447.0,0.01184174]
[1744962269292,0.00540287,84450.0,84447.0,0.03552511]
[1744962269660,0.0008424,84451.0,84448.0,0.0118416]
[1744962270060,0.00540287,84450.0,84448.0,0.0118416]
[1744962270498,0.0008424,84451.0,84448.0,0.0118416]
[1744962270881,0.00540287,84450.0,84448.0,0.0118416]
[1744962271109,0.00540287,84450.0,84449.0,0.02368293]
[1744962271321,0.0008424,84451.0,84449.0,0.02368293]
[1744962271614,0.00540287,84450.0,84449.0,0.02368293]
[1744962271776,0.0008424,84451.0,84449.0,0.02368293]
[1744962272117,0.00540287,84450.0,84449.0,0.02368293]
[1744962272926,0.23680714,84457.0,84449.0,0.02368293]
[1744962272927,0.0004212,84462.0,84461.0,0.02367956]
[1744962273429,0.00046629,84462.0,84461.0,0.02367956]
[1744962278165,0.0004212,84473.0,84461.0,0.02367956]
[1744962278346,0.0004212,84473.0,84463.0,0.023679]
[1744962279150,0.0004212,84473.0,84463.0,0.0323744]
[1744962279591,0.0004212,84473.0,84463.0,0.03474213]
[1744962283374,0.00046628,84473.0,84472.0,0.02367648]
[1744962286133,0.00046628,84473.0,84471.0,0.02367667]
[1744962286308,0.00046628,84473.0,84472.0,0.02367648]
[1744962289329,0.00505192,84473.0,84472.0,0.02367648]
[1744962289837,0.00505192,84473.0,84472.0,0.03663677]
[1744962296948,0.00046628,84473.0,84472.0,0.03663677]
[1744962298276,0.00482121,84473.0,84472.0,0.03663677]
[1744962298628,0.00046628,84473.0,84472.0,0.03663677]
[1744962301678,0.00482121,84473.0,84472.0,0.03663677]
[1744962304610,0.00482121,84473.0,84472.0,0.04402344]
[1744962306013,0.00482121,84473.0,84472.0,0.03663677]
[1744962307432,0.00700859,84473.0,84472.0,0.03663677]
[1744962311208,0.00700859,84473.0,84472.0,0.01296029]
[1744962311388,0.00700859,84473.0,84472.0,0.02367648]
[1744962313463,0.00046628,84473.0,84472.0,0.02367648]
[1744962313829,0.00046628,84473.0,84472.0,0.03609392]
[1744962315290,0.00700258,84473.0,84472.0,0.01241744]
[1744962315444,0.28936462,84473.0,84472.0,0.01241744]
[1744962315629,0.01183866,84469.0,84468.0,0.47232]
[1744962315829,0.25513894,84469.0,84468.0,0.47232]
[1744962316844,0.00652703,84469.0,84468.0,0.4959976]
[1744962317070,0.01183838,84471.0,84469.0,0.36367722]
[1744962317268,0.00652935,84470.0,84469.0,0.37608717]
[1744962317468,0.29466835,84473.0,84470.0,0.02367688]
[1744962317688,0.24328667,84472.0,84469.0,0.38792583]
[1744962318113,0.24328667,84472.0,84470.0,0.02367695]
[1744962318438,0.24328575,84472.0,84470.0,0.02367695]
[1744962318738,0.00652033,84472.0,84470.0,0.02367695]
[1744962321993,0.00652033,84472.0,84471.0,0.00738712]
[1744962323150,0.00652033,84472.0,84471.0,0.03106388]
[1744962329931,0.04606628,84473.0,84472.0,0.02367648]
[1744962330294,0.04606628,84473.0,84472.0,0.0310636]
[1744962331847,0.04606628,84473.0,84469.0,0.26440552]
[1744962332052,0.04606628,84473.0,84472.0,0.02367648]
[1744962340472,0.05252996,84473.0,84472.0,0.02367648]
[1744962342434,0.0004212,84474.0,84473.0,0.0236762]
[1744962344685,0.0004212,84474.0,84473.0,0.03106274]
[1744962345067,0.0004212,84474.0,84473.0,0.0236762]
[1744962350028,0.00527392,84474.0,84473.0,0.0236762]
[1744962353957,0.00527392,84474.0,84473.0,0.3636762]
[1744962363477,0.00527392,84474.0,84473.0,0.0236762]
[1744962368256,0.00527392,84474.0,84472.0,0.36367643]
[1744962368460,0.00527392,84474.0,84473.0,0.0236762]
[1744962370081,0.24203315,84474.0,84472.0,0.36367643]
[1744962370246,0.23912898,84473.0,84472.0,0.34]
[1744962370467,0.23676692,84472.0,84469.0,0.04804802]
[1744962370787,0.00465848,84471.0,84470.0,0.36367704]
[1744962371390,0.24860041,84473.0,84470.0,0.37551556]
[1744962371597,0.00465848,84471.0,84470.0,0.37551556]
[1744962371895,0.0118381,84473.0,84471.0,0.02367663]
[1744962372409,0.23676484,84472.0,84470.0,0.34]
[1744962372550,0.0118381,84473.0,84470.0,0.35183852]
[1744962372751,0.0118381,84473.0,84471.0,0.02367672]
[1744962373172,0.23718132,84474.0,84471.0,0.02367672]
[1744962373415,0.23718132,84474.0,84471.0,0.0355151]
[1744962373831,0.00236694,84473.0,84471.0,0.0355151]
[1744962374205,0.23718132,84474.0,84472.0,0.02367648]
[1744962374206,0.0004212,84474.0,84472.0,0.02367648]
[1744962374612,0.00278814,84474.0,84472.0,0.02367648]
[1744962379041,0.00278814,84474.0,84473.0,0.0236762]
[1744962379314,0.00278814,84474.0,84472.0,0.02367648]
[1744962381469,0.0146261,84474.0,84472.0,0.02367648]
[1744962381833,0.25139082,84474.0,84471.0,0.37551514]
[1744962381970,0.24902388,84474.0,84472.0,0.02367634]
[1744962382719,0.0004212,84474.0,84472.0,0.02367634]
[1744962382919,0.00278814,84474.0,84472.0,0.02367634]
[1744962383674,0.00278814,84474.0,84471.0,0.35183838]
[1744962383923,0.00278814,84474.0,84472.0,0.02367623]
[1744962384115,0.0004212,84474.0,84472.0,0.02367623]
[1744962384353,0.0004212,84474.0,84473.0,0.0236762]
[1744962385735,0.00514552,84474.0,84473.0,0.0236762]
[1744962385941,0.0004212,84474.0,84473.0,0.0236762]
[1744962395014,0.0004212,84474.0,84473.0,0.4959562]
[1744962396207,0.0004212,84478.0,84477.0,0.02367508]
[1744962396404,0.0475,84483.0,84479.0,0.02367452]
[1744962402451,0.0052345,84480.0,84479.0,0.02367452]
[1744962419800,0.0004212,84480.0,84479.0,0.02367452]
[1744962424041,0.0004212,84480.0,84478.0,0.34]
[1744962424273,0.0004212,84480.0,84478.0,0.3636748]
[1744962424444,0.0004212,84480.0,84478.0,0.0236748]
[1744962424892,0.23674802,84478.0,84477.0,0.34]
[1744962425024,0.40119593,84478.0,84477.0,0.34]
[1744962425425,0.40119593,84478.0,84471.0,0.34]
[1744962425426,0.23676269,84473.0,84471.0,0.34]
[1744962425649,0.23677045,84470.0,84463.0,0.1409754]
[1744962425844,0.23678727,84464.0,84463.0,0.0086954]
[1744962426029,0.40360212,84464.0,84463.0,4.508e-05]
[1744962426236,0.40123518,84464.0,84463.0,4.508e-05]
[1744962426821,0.40123518,84464.0,84463.0,0.01471157]
[1744962427042,0.40123518,84464.0,84463.0,4.508e-05]
[1744962429377,0.40123518,84464.0,84463.0,0.01458677]
[1744962429576,0.40123518,84464.0,84463.0,4.508e-05]
[1744962431541,0.40123518,84464.0,84463.0,0.01525087]
[1744962436486,0.40123518,84464.0,84463.0,0.02389839]
[1744962454293,0.40123518,84464.0,84463.0,0.01525087]
[1744962460311,0.23680969,84456.0,84454.0,0.17458738]
[1744962460495,0.23680969,84456.0,84455.0,0.01506094]
[1744962460647,0.23681811,84453.0,84452.0,0.01853692]
[1744962460850,0.35626602,84453.0,84452.0,0.01853692]
[1744962464192,0.35626602,84453.0,84452.0,0.03354585]
[1744962465751,0.35626602,84453.0,84452.0,0.01505402]
[1744962475594,0.35626602,84453.0,84452.0,0.03354664]
[1744962499235,0.0453,84471.0,84454.0,0.02368147]
[1744962499437,0.11944791,84457.0,84455.0,0.02368101]
[1744962499637,0.24861117,84470.0,84461.0,0.01183978]
[1744962499865,0.0118388,84468.0,84461.0,0.17458738]
[1744962500076,0.11944791,84467.0,84465.0,0.01183922]
[1744962500447,0.11944791,84467.0,84465.0,0.03551766]
[1744962500653,0.11944791,84467.0,84464.0,0.01183936]
[1744962500987,0.28636994,84471.0,84464.0,0.01183936]
[1744962500988,0.01183768,84476.0,84470.0,0.01183852]
[1744962501174,0.01183824,84472.0,84467.0,0.02367785]
[1744962501776,0.01183824,84472.0,84469.0,0.02367728]
[1744962502373,0.0004212,84480.0,84476.0,0.01183768]
[1744962502587,0.24858594,84478.0,84474.0,0.03551369]
[1744962502952,0.0118374,84478.0,84475.0,0.01183782]
[1744962503152,0.0004212,84480.0,84477.0,0.02367497]
[1744962503557,0.0004212,84480.0,84477.0,0.03551251]
[1744962503743,0.23716363,84480.0,84477.0,0.03551251]
[1744962504098,0.24858362,84479.0,84476.0,0.01183768]
[1744962505779,0.23675083,84477.0,84473.0,0.0118381]
[1744962505965,0.24859218,84476.0,84473.0,0.0118381]
[1744962506170,0.24859218,84476.0,84471.0,0.34]
[1744962506171,0.01183796,84474.0,84471.0,0.34]
[1744962506330,0.24859202,84476.0,84472.0,0.03551461]
[1744962506898,0.01183754,84477.0,84474.0,0.02367588]
[1744962507027,0.01183754,84477.0,84474.0,0.03551384]
[1744962507234,0.01183754,84477.0,84475.0,0.02367554]
[1744962507615,0.24858751,84478.0,84475.0,0.02367554]
[1744962509539,0.24858987,84477.0,84474.0,0.03551383]
[1744962511285,0.0118374,84478.0,84475.0,0.03551318]
[1744962511530,0.24858633,84478.0,84475.0,0.03551318]
[1744962512512,0.23675096,84477.0,84475.0,0.03551318]
[1744962513348,0.24858633,84478.0,84475.0,0.03551318]
[1744962514340,0.24859363,84476.0,84472.0,0.01183824]
[1744962514594,0.24859363,84476.0,84474.0,0.02367585]
[1744962514799,0.24859276,84476.0,84473.0,0.03551428]
[1744962514979,0.23675469,84476.0,84473.0,0.03551428]
[1744962515205,0.01183782,84475.0,84473.0,0.02367619]
[1744962515372,0.23675851,84476.0,84474.0,0.02367579]
[1744962516302,0.23675643,84475.0,84473.0,0.0118381]
[1744962516480,0.24859149,84476.0,84473.0,0.02367612]
[1744962516683,0.24859149,84476.0,84473.0,0.03551422]
[1744962517415,0.24859149,84476.0,84474.0,0.02367589]
[1744962518211,0.01183754,84477.0,84475.0,0.02367556]
[1744962518377,0.29818752,84478.0,84476.0,0.02367529]
[1744962518577,0.0614374,84478.0,84476.0,0.02367529]
[1744962518780,0.0496,84478.0,84475.0,0.01183782]
[1744962519419,0.0496,84478.0,84476.0,0.02367531]
[1744962519910,0.0496,84478.0,84477.0,0.02367508]
[1744962522867,0.0004212,84480.0,84479.0,0.02367452]
[1744962523166,0.00278814,84480.0,84479.0,0.02367452]
[1744962523397,0.00278814,84480.0,84478.0,0.02367466]
[1744962523808,0.00278814,84480.0,84479.0,0.02367452]
[1744962524232,0.00278814,84480.0,84478.0,0.02367478]
[1744962524406,0.23953247,84480.0,84477.0,0.02367508]
[1744962524606,0.23716553,84480.0,84478.0,0.02367477]
[1744962527869,0.00236694,84479.0,84477.0,0.03551262]
[1744962528280,0.0004212,84480.0,84477.0,0.01183754]
[1744962528445,0.00278814,84480.0,84477.0,0.01183754]
[1744962531794,0.0004212,84480.0,84477.0,0.01183754]
[1744962532579,0.0004212,84480.0,84479.0,0.02367452]
[1744962536960,0.00278814,84480.0,84479.0,0.02367452]
[1744962537987,0.0004212,84480.0,84479.0,0.02367452]
[1744962540196,0.23716362,84480.0,84478.0,0.02367457]
[1744962540521,0.23716362,84480.0,84477.0,0.03551258]
[1744962541044,0.23649762,84480.0,84478.0,0.02367469]
[1744962543018,0.23886456,84480.0,84478.0,0.02367469]
[1744962543672,0.23895529,84480.0,84478.0,0.02367469]
[1744962545047,0.23895529,84480.0,84477.0,0.03551258]
[1744962545255,0.23895529,84480.0,84478.0,0.02367476]
[1744962546703,0.23674802,84478.0,84476.0,0.03551295]
[1744962546921,0.2367474,84479.0,84477.0,0.02367499]
[1744962547095,0.00236694,84479.0,84478.0,0.0236748]
[1744962547519,0.00236694,84479.0,84477.0,0.0355126]
[1744962547699,0.00236694,84479.0,84478.0,0.0236748]
[1744962549392,0.00245767,84480.0,84478.0,0.0236748]
[1744962549808,0.23674522,84479.0,84477.0,0.0355126]
[1744962550214,0.23911216,84479.0,84477.0,0.0355126]
[1744962551633,0.23674802,84478.0,84476.0,0.03551301]
[1744962551838,0.01183726,84479.0,84477.0,0.02367508]
[1744962552037,0.0142042,84479.0,84477.0,0.02367508]
[1744962552962,0.25095039,84479.0,84477.0,0.02367508]
[1744962553261,0.24858345,84479.0,84477.0,0.02367508]